[Event "Live Chess"]
[Site "Chess.com"]
[Date "2023.05.20"]
[Round "-"]
[White "Ocelot32"]
[Black "Demyan7777"]
[Result "0-1"]
[WhiteElo "1391"]
[BlackElo "1676"]
[TimeControl "300"]
[EndTime "12:23:47 PDT"]
[Termination "Demyan7777 won by checkmate"]

1. e4 {[%clk 0:04:57.7]} 1... c6 {[%clk 0:04:56.9]} 2. Nf3 {[%clk 0:04:55.6]}
2... c5 {[%clk 0:04:55.3]} 3. c3 {[%clk 0:04:51.3]} 3... Nf6 {[%clk 0:04:53.4]}
4. e5 {[%clk 0:04:49.6]} 4... Nd5 {[%clk 0:04:51.7]} 5. d4 {[%clk 0:04:48.6]}
5... cxd4 {[%clk 0:04:50.3]} 6. cxd4 {[%clk 0:04:47.8]} 6... d6 {[%clk
0:04:46.4]} 7. exd6 {[%clk 0:04:26.2]} 7... Qxd6 {[%clk 0:04:44.2]} 8. Nc3
{[%clk 0:04:13]} 8... e6 {[%clk 0:04:36.6]} 9. Bd2 {[%clk 0:04:04.6]} 9... a6
{[%clk 0:04:31.6]} 10. Be2 {[%clk 0:04:01.1]} 10... Bd7 {[%clk 0:04:29.5]} 11.
O-O {[%clk 0:03:59.5]} 11... Be7 {[%clk 0:04:27.5]} 12. Ne5 {[%clk 0:03:54.8]}
12... Nc6 {[%clk 0:04:24.2]} 13. Nxd7 {[%clk 0:03:45.3]} 13... Qxd7 {[%clk
0:04:20.2]} 14. Bd3 {[%clk 0:03:42.8]} 14... Ncb4 {[%clk 0:04:17]} 15. Bb1
{[%clk 0:03:37.4]} 15... Rc8 {[%clk 0:04:11.7]} 16. Qg4 {[%clk 0:03:29]} 16...
Bf6 {[%clk 0:04:06.4]} 17. Bg5 {[%clk 0:03:21.9]} 17... Qe7 {[%clk 0:03:42]} 18.
Bxf6 {[%clk 0:03:15.4]} 18... Qxf6 {[%clk 0:03:41.2]} 19. Nxd5 {[%clk
0:03:10.3]} 19... Nxd5 {[%clk 0:03:39]} 20. Bd3 {[%clk 0:03:09.3]} 20... O-O
{[%clk 0:03:36.5]} 21. Qe4 {[%clk 0:03:02.2]} 21... g6 {[%clk 0:03:34.2]} 22.
Rac1 {[%clk 0:02:55.7]} 22... b5 {[%clk 0:03:28.1]} 23. Rc5 {[%clk 0:02:47.8]}
23... Rxc5 {[%clk 0:03:25.9]} 24. dxc5 {[%clk 0:02:46.5]} 24... Qxb2 {[%clk
0:03:23.4]} 25. c6 {[%clk 0:02:31.2]} 25... Rc8 {[%clk 0:03:19.1]} 26. a4 {[%clk
0:02:16.5]} 26... bxa4 {[%clk 0:03:08.5]} 27. Bxa6 {[%clk 0:02:13.3]} 27... Rxc6
{[%clk 0:03:06.5]} 28. Qxa4 {[%clk 0:02:08.6]} 28... Rb6 {[%clk 0:02:56.3]} 29.
Qe8+ {[%clk 0:01:59.5]} 29... Kg7 {[%clk 0:02:49.8]} 30. Bc4 {[%clk 0:01:52.7]}
30... Nf4 {[%clk 0:02:38.3]} 31. Qd7 {[%clk 0:01:31.4]} 31... Rb4 {[%clk
0:02:31.2]} 32. Ba6 {[%clk 0:01:24.5]} 32... Qe5 {[%clk 0:02:17.9]} 33. Qe7
{[%clk 0:01:13.1]} 33... Rb6 {[%clk 0:02:11.3]} 34. Bc4 {[%clk 0:01:05.7]} 34...
Rc6 {[%clk 0:01:57.1]} 35. Bb5 {[%clk 0:01:02.8]} 35... Qxb5 {[%clk 0:01:54.4]}
36. g3 {[%clk 0:01:00.5]} 36... Ne2+ {[%clk 0:01:49.1]} 37. Kg2 {[%clk
0:00:58.3]} 37... Qd5+ {[%clk 0:01:46.3]} 38. Kh3 {[%clk 0:00:56.7]} 38... Rc4
{[%clk 0:01:39]} 39. Qa3 {[%clk 0:00:50.8]} 39... Nd4 {[%clk 0:01:36.1]} 40. Qb2
{[%clk 0:00:48.7]} 40... e5 {[%clk 0:01:31.6]} 41. Rd1 {[%clk 0:00:39.6]} 41...
Qf3 {[%clk 0:01:17.7]} 42. Qa2 {[%clk 0:00:30.3]} 42... Ne6 {[%clk 0:01:04]} 43.
Re1 {[%clk 0:00:22.1]} 43... Ng5# {[%clk 0:01:01.2]} 0-1

[Event "Live Chess"]
[Site "Chess.com"]
[Date "2023.05.20"]
[Round "-"]
[White "whitedjohn"]
[Black "Salpingidis"]
[Result "0-1"]
[WhiteElo "1662"]
[BlackElo "2302"]
[TimeControl "300"]
[EndTime "12:23:59 PDT"]
[Termination "Salpingidis won by resignation"]

1. e4 {[%clk 0:04:53.4]} 1... e6 {[%clk 0:04:59.9]} 2. d4 {[%clk 0:04:50.6]}
2... d5 {[%clk 0:04:58.7]} 3. Nc3 {[%clk 0:04:48.5]} 3... dxe4 {[%clk
0:04:58.6]} 4. Nxe4 {[%clk 0:04:45.7]} 4... Nd7 {[%clk 0:04:58.5]} 5. Nf3 {[%clk
0:04:42.8]} 5... Ngf6 {[%clk 0:04:58.4]} 6. Bg5 {[%clk 0:04:39.8]} 6... Be7
{[%clk 0:04:57.9]} 7. Nxf6+ {[%clk 0:04:38.2]} 7... Nxf6 {[%clk 0:04:57.8]} 8.
Bd3 {[%clk 0:04:35]} 8... O-O {[%clk 0:04:56.8]} 9. O-O {[%clk 0:04:33]} 9... b6
{[%clk 0:04:55.6]} 10. Qe2 {[%clk 0:04:29.1]} 10... Bb7 {[%clk 0:04:55.1]} 11.
c3 {[%clk 0:04:24.4]} 11... c5 {[%clk 0:04:53.7]} 12. dxc5 {[%clk 0:04:16.1]}
12... bxc5 {[%clk 0:04:53.6]} 13. Bxf6 {[%clk 0:04:09.2]} 13... Bxf6 {[%clk
0:04:52.4]} 14. Rad1 {[%clk 0:04:05.3]} 14... Qc7 {[%clk 0:04:50.4]} 15. Be4
{[%clk 0:04:03.1]} 15... Bxe4 {[%clk 0:04:46]} 16. Qxe4 {[%clk 0:04:02.7]} 16...
Rfd8 {[%clk 0:04:45.3]} 17. Qe2 {[%clk 0:03:49.8]} 17... Rab8 {[%clk 0:04:33.8]}
18. b3 {[%clk 0:03:44.3]} 18... Bxc3 {[%clk 0:04:30.5]} 19. Qc4 {[%clk
0:03:36.9]} 19... Bf6 {[%clk 0:04:27.8]} 0-1

[Event "Live Chess"]
[Site "Chess.com"]
[Date "2023.05.20"]
[Round "-"]
[White "Hacker_2009"]
[Black "wot-not"]
[Result "1-0"]
[WhiteElo "1913"]
[BlackElo "1482"]
[TimeControl "300"]
[EndTime "12:24:05 PDT"]
[Termination "Hacker_2009 won by resignation"]

1. d4 {[%clk 0:04:55.8]} 1... Nf6 {[%clk 0:04:58.7]} 2. Nf3 {[%clk 0:04:54.5]}
2... d6 {[%clk 0:04:57.8]} 3. c4 {[%clk 0:04:53.3]} 3... Bg4 {[%clk 0:04:56.8]}
4. e3 {[%clk 0:04:52.1]} 4... Nbd7 {[%clk 0:04:56]} 5. Be2 {[%clk 0:04:51.4]}
5... c5 {[%clk 0:04:53.4]} 6. O-O {[%clk 0:04:50.7]} 6... cxd4 {[%clk
0:04:52.4]} 7. Nxd4 {[%clk 0:04:49]} 7... Bxe2 {[%clk 0:04:50.7]} 8. Qxe2 {[%clk
0:04:48.3]} 8... e5 {[%clk 0:04:48]} 9. Nf5 {[%clk 0:04:42.8]} 9... Be7 {[%clk
0:04:45.5]} 10. Rd1 {[%clk 0:04:40.7]} 10... Nf8 {[%clk 0:04:43.4]} 11. Nxg7+
{[%clk 0:04:37.9]} 11... Kd7 {[%clk 0:04:40.1]} 12. c5 {[%clk 0:04:37.2]} 12...
Kc7 {[%clk 0:04:28.5]} 13. Nf5 {[%clk 0:04:34.6]} 13... Rc8 {[%clk 0:04:19.5]}
14. cxd6+ {[%clk 0:04:32.8]} 14... Bxd6 {[%clk 0:04:17.2]} 15. Rxd6 {[%clk
0:04:31.2]} 1-0

[Event "Live Chess"]
[Site "Chess.com"]
[Date "2023.05.20"]
[Round "-"]
[White "RoaringKnights"]
[Black "Olisingapore"]
[Result "0-1"]
[WhiteElo "966"]
[BlackElo "1905"]
[TimeControl "300"]
[EndTime "12:24:08 PDT"]
[Termination "Olisingapore won by checkmate"]

1. e4 {[%clk 0:04:58.9]} 1... c5 {[%clk 0:04:58.1]} 2. Bc4 {[%clk 0:04:57.3]}
2... e6 {[%clk 0:04:56.7]} 3. Nf3 {[%clk 0:04:56.4]} 3... Nc6 {[%clk 0:04:56.3]}
4. d4 {[%clk 0:04:54.2]} 4... cxd4 {[%clk 0:04:54.8]} 5. Nxd4 {[%clk 0:04:53.2]}
5... Nxd4 {[%clk 0:04:51.8]} 6. Qxd4 {[%clk 0:04:49.4]} 6... d6 {[%clk
0:04:45.3]} 7. Qc3 {[%clk 0:04:34.9]} 7... Nf6 {[%clk 0:04:43.4]} 8. Be3 {[%clk
0:04:33.2]} 8... Be7 {[%clk 0:04:42]} 9. Nd2 {[%clk 0:04:25.8]} 9... O-O {[%clk
0:04:40.3]} 10. Bd3 {[%clk 0:04:23.7]} 10... a6 {[%clk 0:04:25.7]} 11. e5 {[%clk
0:04:20.3]} 11... dxe5 {[%clk 0:04:22.5]} 12. Qxe5 {[%clk 0:04:17.4]} 12... Nd5
{[%clk 0:04:22]} 13. Qe4 {[%clk 0:04:07.3]} 13... g6 {[%clk 0:04:16.6]} 14. Bh6
{[%clk 0:04:05.1]} 14... Nf6 {[%clk 0:04:01.3]} 15. Qc4 {[%clk 0:03:45.8]} 15...
b5 {[%clk 0:03:52.9]} 16. Qc6 {[%clk 0:03:38.2]} 16... Rb8 {[%clk 0:03:50.6]}
17. Bxf8 {[%clk 0:03:35.2]} 17... Bxf8 {[%clk 0:03:47.5]} 18. Qf3 {[%clk
0:03:23.5]} 18... Bb7 {[%clk 0:03:42.7]} 19. Qg3 {[%clk 0:03:15.3]} 19... Nh5
{[%clk 0:03:34.6]} 20. Qg4 {[%clk 0:02:59.9]} 20... Qf6 {[%clk 0:03:10.6]} 21.
O-O-O {[%clk 0:02:53.3]} 21... Ba3 {[%clk 0:03:03.5]} 22. c3 {[%clk 0:02:41.2]}
22... Qxc3+ {[%clk 0:02:58.5]} 23. Kb1 {[%clk 0:02:36.7]} 23... Qxb2# {[%clk
0:02:58.2]} 0-1

[Event "Live Chess"]
[Site "Chess.com"]
[Date "2023.05.20"]
[Round "-"]
[White "bigedd"]
[Black "OceanFloater"]
[Result "0-1"]
[WhiteElo "738"]
[BlackElo "983"]
[TimeControl "300"]
[EndTime "12:24:17 PDT"]
[Termination "OceanFloater won on time"]

1. d4 {[%clk 0:04:56.2]} 1... c6 {[%clk 0:04:59.1]} 2. c4 {[%clk 0:04:54.4]}
2... d5 {[%clk 0:04:58.5]} 3. Nc3 {[%clk 0:04:51.5]} 3... dxc4 {[%clk
0:04:57.3]} 4. e4 {[%clk 0:04:47.3]} 4... Nf6 {[%clk 0:04:51.3]} 5. Bxc4 {[%clk
0:04:44.9]} 5... e6 {[%clk 0:04:42.7]} 6. Qf3 {[%clk 0:04:40.5]} 6... b5 {[%clk
0:04:37.5]} 7. Bb3 {[%clk 0:04:38.5]} 7... b4 {[%clk 0:04:36.7]} 8. Na4 {[%clk
0:04:30.9]} 8... Qa5 {[%clk 0:04:29.5]} 9. Ne2 {[%clk 0:04:20.1]} 9... Be7
{[%clk 0:04:17.8]} 10. O-O {[%clk 0:04:13.8]} 10... O-O {[%clk 0:04:14.3]} 11.
Bd2 {[%clk 0:04:06.6]} 11... Nh5 {[%clk 0:04:12.9]} 12. Rac1 {[%clk 0:03:47.3]}
12... Bd7 {[%clk 0:04:07.9]} 13. d5 {[%clk 0:03:40.6]} 13... c5 {[%clk 0:04:04]}
14. Nxc5 {[%clk 0:03:32]} 14... Bxc5 {[%clk 0:03:58.8]} 15. Qxh5 {[%clk
0:03:25.7]} 15... exd5 {[%clk 0:03:48.7]} 16. Qxd5 {[%clk 0:03:14.8]} 16...
Bxf2+ {[%clk 0:03:37.5]} 17. Rxf2 {[%clk 0:03:05.6]} 17... Qxd5 {[%clk
0:03:36.9]} 18. exd5 {[%clk 0:03:03.8]} 18... Bb5 {[%clk 0:03:33.9]} 19. Nf4
{[%clk 0:02:57.3]} 19... Nd7 {[%clk 0:03:33.2]} 20. Bxb4 {[%clk 0:02:51]} 20...
Rfe8 {[%clk 0:03:28.8]} 21. a4 {[%clk 0:02:37.2]} 21... Ba6 {[%clk 0:03:19.5]}
22. h3 {[%clk 0:02:22.2]} 22... Nf6 {[%clk 0:03:05.4]} 23. d6 {[%clk 0:02:17.9]}
23... Ne4 {[%clk 0:02:59.8]} 24. Rfc2 {[%clk 0:02:04.9]} 24... Nxd6 {[%clk
0:02:39.3]} 25. Bxd6 {[%clk 0:02:00.7]} 25... Rad8 {[%clk 0:02:34]} 26. Ba3
{[%clk 0:01:46.6]} 26... Rd4 {[%clk 0:02:25.1]} 27. Rc7 {[%clk 0:01:27.3]} 27...
Rxf4 {[%clk 0:02:20.2]} 28. Bd6 {[%clk 0:01:20.5]} 28... Rd4 {[%clk 0:02:10.8]}
29. Bxf7+ {[%clk 0:01:14.6]} 29... Kh8 {[%clk 0:02:06.5]} 30. Bxe8 {[%clk
0:01:06.7]} 30... Rxd6 {[%clk 0:02:06]} 31. Bb5 {[%clk 0:00:57.8]} 31... Bxb5
{[%clk 0:02:03.5]} 32. axb5 {[%clk 0:00:56.1]} 32... h6 {[%clk 0:02:01]} 33.
Rc8+ {[%clk 0:00:52.1]} 33... Kh7 {[%clk 0:01:59.8]} 34. R8c7 {[%clk 0:00:50.6]}
34... Rb6 {[%clk 0:01:57.9]} 35. R1c6 {[%clk 0:00:44.3]} 35... Rb8 {[%clk
0:01:53.6]} 36. Rc5 {[%clk 0:00:39.8]} 36... a6 {[%clk 0:01:48.5]} 37. Rc3
{[%clk 0:00:32.5]} 37... Rxb5 {[%clk 0:01:46.5]} 38. Rg3 {[%clk 0:00:31.2]}
38... h5 {[%clk 0:01:38.4]} 39. Rg4 {[%clk 0:00:28.5]} 39... Rxb2 {[%clk
0:01:36.7]} 40. Rgxg7+ {[%clk 0:00:26.8]} 40... Kh6 {[%clk 0:01:35.4]} 41. Rge7
{[%clk 0:00:24.2]} 41... Rb1+ {[%clk 0:01:33.5]} 42. Kh2 {[%clk 0:00:15]} 42...
a5 {[%clk 0:01:30.9]} 43. Re6+ {[%clk 0:00:13.7]} 43... Kg5 {[%clk 0:01:28]} 44.
Rc5+ {[%clk 0:00:12.1]} 44... Kf4 {[%clk 0:01:25.6]} 45. g3+ {[%clk 0:00:09.4]}
45... Kf3 {[%clk 0:01:23.2]} 46. Rf6+ {[%clk 0:00:08.3]} 46... Ke3 {[%clk
0:01:21.9]} 47. Rd5 {[%clk 0:00:02.8]} 47... Rb2+ {[%clk 0:01:20.9]} 0-1

[Event "Live Chess"]
[Site "Chess.com"]
[Date "2023.05.20"]
[Round "-"]
[White "dudeasy"]
[Black "mpersander"]
[Result "1-0"]
[WhiteElo "1054"]
[BlackElo "992"]
[TimeControl "300"]
[EndTime "12:24:19 PDT"]
[Termination "dudeasy won on time"]

1. Nf3 {[%clk 0:04:59]} 1... d5 {[%clk 0:04:47.6]} 2. g3 {[%clk 0:04:57.1]} 2...
Nc6 {[%clk 0:04:44.2]} 3. d4 {[%clk 0:04:55]} 3... Bg4 {[%clk 0:04:32.4]} 4. Bg2
{[%clk 0:04:53.6]} 4... Qd7 {[%clk 0:04:21.6]} 5. O-O {[%clk 0:04:49.4]} 5...
Bh3 {[%clk 0:04:19.3]} 6. c4 {[%clk 0:04:47.7]} 6... Bxg2 {[%clk 0:04:17.7]} 7.
Kxg2 {[%clk 0:04:46.1]} 7... Nf6 {[%clk 0:03:54.9]} 8. Nc3 {[%clk 0:04:42.4]}
8... dxc4 {[%clk 0:03:51.9]} 9. e3 {[%clk 0:04:38.3]} 9... O-O-O {[%clk
0:03:46.5]} 10. Qa4 {[%clk 0:04:34.7]} 10... e6 {[%clk 0:03:21.2]} 11. Qxc4
{[%clk 0:04:32.2]} 11... Bb4 {[%clk 0:02:58.1]} 12. a3 {[%clk 0:04:29.4]} 12...
Bxc3 {[%clk 0:02:54.6]} 13. Qxc3 {[%clk 0:04:26]} 13... Rhe8 {[%clk 0:02:47.7]}
14. b4 {[%clk 0:04:21.2]} 14... Ne4 {[%clk 0:02:36.7]} 15. Qc2 {[%clk 0:04:15]}
15... h6 {[%clk 0:01:52.4]} 16. Qxe4 {[%clk 0:04:10.7]} 16... f5 {[%clk
0:01:43]} 17. Qc2 {[%clk 0:04:06.1]} 17... Qd5 {[%clk 0:01:41.5]} 18. Bb2 {[%clk
0:04:02.2]} 18... g5 {[%clk 0:01:39.4]} 19. Rac1 {[%clk 0:03:54.5]} 19... g4
{[%clk 0:01:35.5]} 20. e4 {[%clk 0:03:47.8]} 20... gxf3+ {[%clk 0:01:23.7]} 21.
Kxf3 {[%clk 0:03:46.8]} 21... Qxd4 {[%clk 0:01:10.8]} 22. Bxd4 {[%clk
0:03:43.3]} 22... Nxd4+ {[%clk 0:01:09.7]} 23. Kg2 {[%clk 0:03:42.1]} 23... Nxc2
{[%clk 0:01:08.6]} 24. Rxc2 {[%clk 0:03:41.1]} 24... fxe4 {[%clk 0:01:03.8]} 25.
Rfc1 {[%clk 0:03:39.1]} 25... c6 {[%clk 0:01:01.9]} 26. b5 {[%clk 0:03:36.1]}
26... Rd6 {[%clk 0:00:57.1]} 27. bxc6 {[%clk 0:03:34]} 27... b6 {[%clk
0:00:55.9]} 28. Rc4 {[%clk 0:03:29.9]} 28... Kc7 {[%clk 0:00:50.3]} 29. Rxe4
{[%clk 0:03:27.3]} 29... Rxc6 {[%clk 0:00:49.4]} 30. Rec4 {[%clk 0:03:23.5]}
30... Rxc4 {[%clk 0:00:45.7]} 31. Rxc4+ {[%clk 0:03:22]} 31... Kd6 {[%clk
0:00:44.7]} 32. Rh4 {[%clk 0:03:19.6]} 32... Rh8 {[%clk 0:00:42.5]} 33. Kf3
{[%clk 0:03:16.4]} 33... e5 {[%clk 0:00:40.1]} 34. Ke3 {[%clk 0:03:13.9]} 34...
Kd5 {[%clk 0:00:37.7]} 35. Rh5 {[%clk 0:03:11.8]} 35... a5 {[%clk 0:00:31.8]}
36. f4 {[%clk 0:03:08.6]} 36... b5 {[%clk 0:00:24.3]} 37. Rxe5+ {[%clk
0:03:06.3]} 37... Kd6 {[%clk 0:00:22.6]} 38. Rxb5 {[%clk 0:03:04.8]} 38... Re8+
{[%clk 0:00:20.8]} 39. Kf3 {[%clk 0:03:02.8]} 39... a4 {[%clk 0:00:18.1]} 40.
Ra5 {[%clk 0:03:00.1]} 40... Kc6 {[%clk 0:00:15.4]} 41. Rxa4 {[%clk 0:02:58.8]}
41... Rd8 {[%clk 0:00:14.3]} 42. Kg4 {[%clk 0:02:55.4]} 42... Rd2 {[%clk
0:00:11.5]} 43. Kh3 {[%clk 0:02:52.5]} 43... Kc5 {[%clk 0:00:08.9]} 44. Ra6
{[%clk 0:02:50.1]} 44... Rd6 {[%clk 0:00:07.2]} 45. Rxd6 {[%clk 0:02:47.2]}
45... Kxd6 {[%clk 0:00:06.2]} 46. Kh4 {[%clk 0:02:46.4]} 1-0

[Event "Live Chess"]
[Site "Chess.com"]
[Date "2023.05.20"]
[Round "-"]
[White "chessfiction"]
[Black "Ayush_prahlad_Gupta"]
[Result "1-0"]
[WhiteElo "2409"]
[BlackElo "1785"]
[TimeControl "300"]
[EndTime "12:24:32 PDT"]
[Termination "chessfiction won on time"]

1. e4 {[%clk 0:04:59.4]} 1... e5 {[%clk 0:04:58.5]} 2. Nf3 {[%clk 0:04:58.1]}
2... Nc6 {[%clk 0:04:58.4]} 3. Bb5 {[%clk 0:04:57.2]} 3... Bc5 {[%clk
0:04:57.7]} 4. d3 {[%clk 0:04:52.7]} 4... a6 {[%clk 0:04:55.9]} 5. Ba4 {[%clk
0:04:51.3]} 5... b5 {[%clk 0:04:53.9]} 6. Bb3 {[%clk 0:04:50.1]} 6... d6 {[%clk
0:04:53.5]} 7. c3 {[%clk 0:04:49.6]} 7... Nf6 {[%clk 0:04:51.2]} 8. O-O {[%clk
0:04:48.8]} 8... O-O {[%clk 0:04:49.8]} 9. Bg5 {[%clk 0:04:47.7]} 9... h6 {[%clk
0:04:48.8]} 10. Bh4 {[%clk 0:04:43.1]} 10... Bg4 {[%clk 0:04:47.8]} 11. h3
{[%clk 0:04:41.5]} 11... Bh5 {[%clk 0:04:46.3]} 12. g4 {[%clk 0:04:40.6]} 12...
Bg6 {[%clk 0:04:43.6]} 13. Nbd2 {[%clk 0:04:39.9]} 13... Na5 {[%clk 0:04:36.3]}
14. Bc2 {[%clk 0:04:35.7]} 14... Bb6 {[%clk 0:04:33.9]} 15. Qe2 {[%clk
0:04:29.6]} 15... h5 {[%clk 0:04:19]} 16. d4 {[%clk 0:04:18]} 16... hxg4 {[%clk
0:04:15.7]} 17. hxg4 {[%clk 0:04:16.2]} 17... Qd7 {[%clk 0:04:07.4]} 18. Nh2
{[%clk 0:04:11.7]} 18... exd4 {[%clk 0:03:28.1]} 19. Bxf6 {[%clk 0:04:10]} 19...
gxf6 {[%clk 0:03:24.3]} 20. Rad1 {[%clk 0:03:50.7]} 20... d5 {[%clk 0:02:46.9]}
21. Ndf3 {[%clk 0:03:43.7]} 21... Rae8 {[%clk 0:02:27.3]} 22. Nxd4 {[%clk
0:03:41.2]} 22... Nc4 {[%clk 0:02:18.2]} 23. Qf3 {[%clk 0:03:36.7]} 23... Nxb2
{[%clk 0:02:08.1]} 24. Qxf6 {[%clk 0:03:32.6]} 24... Bxd4 {[%clk 0:01:59.2]} 25.
Rxd4 {[%clk 0:03:27]} 25... c6 {[%clk 0:01:48.2]} 26. f3 {[%clk 0:02:58.2]}
26... Re6 {[%clk 0:01:43.8]} 27. Qf4 {[%clk 0:02:56.6]} 27... Kg7 {[%clk
0:01:39.9]} 28. g5 {[%clk 0:02:55.4]} 28... Rh8 {[%clk 0:01:36.8]} 29. Ng4
{[%clk 0:02:54.4]} 29... Qe7 {[%clk 0:01:19.2]} 30. Rf2 {[%clk 0:02:51.8]} 30...
Nc4 {[%clk 0:01:13.7]} 31. Nf6 {[%clk 0:02:31.1]} 31... Ne5 {[%clk 0:01:04.9]}
32. exd5 {[%clk 0:02:28]} 32... cxd5 {[%clk 0:01:01.7]} 33. Bxg6 {[%clk
0:02:25.2]} 33... Nxg6 {[%clk 0:00:59.8]} 34. Qg4 {[%clk 0:02:06.6]} 34... Re1+
{[%clk 0:00:54.4]} 35. Kg2 {[%clk 0:02:00.8]} 35... Nh4+ {[%clk 0:00:45.3]} 36.
Qxh4 {[%clk 0:01:58.9]} 36... Rxh4 {[%clk 0:00:41.5]} 37. Rxh4 {[%clk
0:01:58.8]} 37... Qe5 {[%clk 0:00:33.8]} 38. f4 {[%clk 0:01:57.1]} 38... Qxc3
{[%clk 0:00:27.1]} 39. Rh7+ {[%clk 0:01:54.8]} 39... Kf8 {[%clk 0:00:22.7]} 40.
Rh8+ {[%clk 0:01:52.6]} 40... Ke7 {[%clk 0:00:21.9]} 41. Nxd5+ {[%clk
0:01:50.2]} 41... Kd6 {[%clk 0:00:19.9]} 42. Nxc3 {[%clk 0:01:50.1]} 42... Ra1
{[%clk 0:00:18]} 43. Re2 {[%clk 0:01:48.3]} 43... Kc5 {[%clk 0:00:16.7]} 44.
Rc8+ {[%clk 0:01:47.7]} 44... Kb4 {[%clk 0:00:16.6]} 45. Rb2+ {[%clk 0:01:46.8]}
45... Ka3 {[%clk 0:00:15]} 46. Rc6 {[%clk 0:01:46.3]} 46... Kxb2 {[%clk
0:00:11.9]} 47. Ne4 {[%clk 0:01:41.1]} 47... Kxa2 {[%clk 0:00:11.8]} 48. Rxa6+
{[%clk 0:01:39.2]} 48... Kb2 {[%clk 0:00:11.3]} 49. Rxa1 {[%clk 0:01:39.1]}
49... Kxa1 {[%clk 0:00:11.1]} 50. f5 {[%clk 0:01:38.8]} 50... b4 {[%clk
0:00:10.4]} 51. g6 {[%clk 0:01:38.7]} 51... b3 {[%clk 0:00:09.6]} 52. gxf7
{[%clk 0:01:38.2]} 52... b2 {[%clk 0:00:08.9]} 53. Nc3 {[%clk 0:01:37.5]} 53...
b1=N {[%clk 0:00:07]} 54. Nxb1 {[%clk 0:01:36.6]} 54... Kxb1 {[%clk 0:00:06.4]}
55. f8=Q {[%clk 0:01:36.5]} 55... Kc2 {[%clk 0:00:06.1]} 56. f6 {[%clk
0:01:36.4]} 56... Kd3 {[%clk 0:00:05.7]} 57. f7 {[%clk 0:01:36.3]} 57... Ke4
{[%clk 0:00:05.5]} 58. Qe8+ {[%clk 0:01:36.2]} 58... Kd5 {[%clk 0:00:05.1]} 59.
f8=Q {[%clk 0:01:35]} 59... Kc4 {[%clk 0:00:02.7]} 60. Qc6+ {[%clk 0:01:34.1]}
60... Kb3 {[%clk 0:00:01.7]} 61. Qa3+ {[%clk 0:01:32.7]} 61... Kxa3 {[%clk
0:00:00.6]} 62. Qa6+ {[%clk 0:01:31.8]} 62... Kb2 {[%clk 0:00:00.5]} 63. Qb7+
{[%clk 0:01:31.7]} 63... Kc2 {[%clk 0:00:00.3]} 64. Qc7+ {[%clk 0:01:31.6]} 1-0

[Event "Live Chess"]
[Site "Chess.com"]
[Date "2023.05.20"]
[Round "-"]
[White "gggoodgamebroski"]
[Black "martynstanley"]
[Result "0-1"]
[WhiteElo "329"]
[BlackElo "991"]
[TimeControl "300"]
[EndTime "12:24:34 PDT"]
[Termination "martynstanley won by checkmate"]

1. d4 {[%clk 0:04:57.2]} 1... e6 {[%clk 0:04:59.5]} 2. e4 {[%clk 0:04:54.8]}
2... d5 {[%clk 0:04:59]} 3. f3 {[%clk 0:04:53.6]} 3... c5 {[%clk 0:04:57.9]} 4.
c3 {[%clk 0:04:51.5]} 4... Nc6 {[%clk 0:04:57.2]} 5. dxc5 {[%clk 0:04:50.1]}
5... Bxc5 {[%clk 0:04:56.1]} 6. Bb5 {[%clk 0:04:33.7]} 6... Qb6 {[%clk
0:04:54.6]} 7. Bxc6+ {[%clk 0:04:29.6]} 7... bxc6 {[%clk 0:04:53.4]} 8. Qe2
{[%clk 0:04:22.9]} 8... Ba6 {[%clk 0:04:51.2]} 9. Qc2 {[%clk 0:04:09.6]} 9...
Bxg1 {[%clk 0:04:46.4]} 10. Rxg1 {[%clk 0:04:07.7]} 10... Qxg1+ {[%clk
0:04:44.6]} 11. Kd2 {[%clk 0:04:06.4]} 11... Qxg2+ {[%clk 0:04:43.3]} 12. Kd1
{[%clk 0:04:03.5]} 12... Qxf3+ {[%clk 0:04:39.6]} 13. Kd2 {[%clk 0:03:59.7]}
13... dxe4 {[%clk 0:04:33.9]} 14. Qa4 {[%clk 0:03:51.3]} 14... Qd3+ {[%clk
0:04:30.3]} 15. Ke1 {[%clk 0:03:49]} 15... Qf1+ {[%clk 0:04:20.5]} 16. Kd2
{[%clk 0:03:37.9]} 16... Qf2+ {[%clk 0:04:15.8]} 17. Kd1 {[%clk 0:03:36.2]}
17... Qe2# {[%clk 0:04:12.4]} 0-1

[Event "Live Chess"]
[Site "Chess.com"]
[Date "2023.05.20"]
[Round "-"]
[White "kevinmilleruk"]
[Black "Bot_Boy"]
[Result "1-0"]
[WhiteElo "1113"]
[BlackElo "330"]
[TimeControl "300"]
[EndTime "12:24:35 PDT"]
[Termination "kevinmilleruk won on time"]

1. c4 {[%clk 0:04:57.7]} 1... Nf6 {[%clk 0:04:55.7]} 2. Nc3 {[%clk 0:04:55.4]}
2... e6 {[%clk 0:04:53.9]} 3. d4 {[%clk 0:04:54.4]} 3... Nc6 {[%clk 0:04:51]} 4.
Nf3 {[%clk 0:04:51.9]} 4... Ne7 {[%clk 0:04:49.8]} 5. g3 {[%clk 0:04:51.3]} 5...
d5 {[%clk 0:04:46.5]} 6. cxd5 {[%clk 0:04:49.6]} 6... Nexd5 {[%clk 0:04:43.7]}
7. Bg2 {[%clk 0:04:47.6]} 7... Nxc3 {[%clk 0:04:41.7]} 8. bxc3 {[%clk
0:04:45.8]} 8... Nd5 {[%clk 0:04:38.9]} 9. Qb3 {[%clk 0:04:34.8]} 9... a5 {[%clk
0:04:23.8]} 10. O-O {[%clk 0:04:30.1]} 10... a4 {[%clk 0:04:00.5]} 11. Qc4
{[%clk 0:04:22]} 11... Nb6 {[%clk 0:03:40.9]} 12. Qb5+ {[%clk 0:04:01.8]} 12...
Qd7 {[%clk 0:03:29.3]} 13. Qxd7+ {[%clk 0:04:00]} 13... Bxd7 {[%clk 0:03:17.9]}
14. Bf4 {[%clk 0:03:58.9]} 14... c5 {[%clk 0:02:53.8]} 15. Ne5 {[%clk
0:03:45.6]} 15... cxd4 {[%clk 0:02:37.9]} 16. cxd4 {[%clk 0:03:40.7]} 16... Nd5
{[%clk 0:02:26.2]} 17. Nxd7 {[%clk 0:03:15.4]} 17... Kxd7 {[%clk 0:02:23.3]} 18.
Be3 {[%clk 0:03:10.8]} 18... Bd6 {[%clk 0:02:02.9]} 19. Rab1 {[%clk 0:03:07.6]}
19... Rhb8 {[%clk 0:01:48]} 20. Bd2 {[%clk 0:02:55.2]} 20... b5 {[%clk
0:01:34.1]} 21. e4 {[%clk 0:02:48.1]} 21... Nc7 {[%clk 0:01:21.2]} 22. e5 {[%clk
0:02:46.8]} 22... Be7 {[%clk 0:00:52.4]} 23. Bxa8 {[%clk 0:02:42.1]} 23... Rxa8
{[%clk 0:00:41.2]} 24. Bb4 {[%clk 0:02:40.6]} 24... Bxb4 {[%clk 0:00:28.7]} 25.
Rxb4 {[%clk 0:02:38.2]} 25... a3 {[%clk 0:00:24.1]} 26. h4 {[%clk 0:02:31.5]}
26... Ra5 {[%clk 0:00:19.4]} 27. f4 {[%clk 0:02:25.8]} 27... Nd5 {[%clk
0:00:18.1]} 28. Rb3 {[%clk 0:02:21.3]} 28... b4 {[%clk 0:00:14.6]} 29. g4 {[%clk
0:02:16.2]} 29... f6 {[%clk 0:00:13.8]} 30. exf6 {[%clk 0:02:13.1]} 30... Nxf6
{[%clk 0:00:12.2]} 31. f5 {[%clk 0:02:12.1]} 31... Nxg4 {[%clk 0:00:10.6]} 32.
fxe6+ {[%clk 0:02:09.3]} 32... Ke7 {[%clk 0:00:09.1]} 33. Rf7+ {[%clk
0:02:06.2]} 33... Kxe6 {[%clk 0:00:08.2]} 34. Rxg7 {[%clk 0:02:05.4]} 34... Nf6
{[%clk 0:00:03.5]} 35. Re3+ {[%clk 0:02:02.7]} 35... Kd5 {[%clk 0:00:01.4]} 36.
Re5+ {[%clk 0:01:56.1]} 1-0